fUSD/lending_fUSD_20241013
["ID","MTS","AMOUNT","RATE_DAILY","PERIOD"]
[340210416,1728846665171,-151.0,0.00012329,2]
[340210417,1728846665180,-151.0,0.00012329,2]
[340210418,1728846665189,-151.0,0.00012329,2]
[340210419,1728846665200,-151.0,0.00012329,2]
[340210420,1728846665209,-151.0,0.00012329,2]
[340210421,1728846665218,-151.0,0.00012329,2]
[340210422,1728846665227,-151.0,0.00012329,2]
[340210423,1728846665236,-151.0,0.00012329,2]
[340210424,1728846665245,-151.0,0.00012329,2]
[340210425,1728846665254,-151.0,0.00012329,2]
[340210426,1728846665264,-151.0,0.00012329,2]
[340210427,1728846665273,-729.355203,0.00012329,2]
[340210428,1728846665282,-729.355203,0.00012329,2]
[340210429,1728846665292,-151.0,0.00012329,2]
[340210430,1728846665301,-151.0,0.00012329,2]
[340210431,1728846665310,-151.0,0.00012329,2]
[340210432,1728846665319,-151.0,0.00012329,2]
[340210433,1728846665330,-151.0,0.00012329,2]
[340210434,1728846665339,-151.0,0.00012329,2]
[340210435,1728846665349,-151.0,0.00012329,2]
[340210436,1728846665358,-201.535813,0.00012329,2]
[340210437,1728846665367,-201.535813,0.00012329,2]
[340210438,1728846665377,-395.266108,0.00012329,2]
[340210439,1728846665386,-395.266108,0.00012329,2]
[340210440,1728846665396,-170.675824,0.00012329,2]
[340210441,1728846665405,-151.0,0.00012329,2]
[340210442,1728846665414,-151.0,0.00012329,2]
[340210443,1728846665423,-151.0,0.00012329,2]
[340210444,1728846665433,-151.0,0.00012329,2]
[340210445,1728846665444,-151.0,0.00012329,2]
[340210446,1728846665453,-151.0,0.00012329,2]
[340210447,1728846665463,-308.193373,0.00012329,2]
[340210448,1728846665472,-308.193373,0.00012329,2]
[340210449,1728846665481,-224.344124,0.00012329,2]
[340210450,1728846665491,-224.344124,0.00012329,2]
[340210451,1728846665500,-154.050182,0.00012329,2]
[340210452,1728846665510,-258.253411,0.00012329,2]
[340210453,1728846665519,-258.253411,0.00012329,2]
[340210454,1728846665529,-197.458902,0.00012329,2]
[340210455,1728846665539,-197.458902,0.00012329,2]
[340210456,1728846665550,-313.95233,0.00012329,2]
[340210457,1728846665559,-313.95233,0.00012329,2]
[340210458,1728846665568,-151.0,0.00012329,2]
[340210459,1728846665577,-899.559417,0.00012329,2]
[340210460,1728846665588,-899.559417,0.00012329,2]
[340210461,1728846665598,-153.043106,0.00012329,2]
[340210462,1728846665608,-2600.59806,0.00012329,2]
[340210463,1728846665618,-2600.59806,0.00012329,2]
[340210464,1728846665627,-154.623256,0.00012329,2]
[340210465,1728846665636,-207.853662,0.00012329,2]
[340210466,1728846665646,-207.853662,0.00012329,2]
[340210467,1728846665656,-194.830313,0.00012329,2]
[340210468,1728846665669,-194.830313,0.00012329,2]
[340210469,1728846665678,-171.82244,0.00012329,2]
[340210470,1728846665688,-171.82244,0.00012329,2]
[340210471,1728846665699,-1136.302571,0.00012329,2]
[340210472,1728846665709,-329.968836,0.00012329,2]
[340210473,1728846665718,-1136.302571,0.00012329,2]
[340210474,1728846665728,-151.0,0.00012329,2]
[340210475,1728846665737,-329.968836,0.00012329,2]
[340210476,1728846665746,-151.0,0.00012329,2]
[340210477,1728846665756,-151.0,0.00012329,2]
[340210478,1728846665766,-151.0,0.00012329,2]
[340210479,1728846665775,-580.768698,0.00012329,2]
[340210480,1728846665784,-151.0,0.00012329,2]
[340210481,1728846665794,-558.680616,0.00012329,2]
[340210482,1728846665803,-151.0,0.00012329,2]
[340210483,1728846665812,-580.768698,0.00012329,2]
[340210484,1728846665821,-558.680616,0.00012329,2]
[340210485,1728846665831,-296.234518,0.00012329,2]
[340210486,1728846665839,-296.234518,0.00012329,2]
[340210487,1728846665849,-151.0,0.00012329,2]
[340210488,1728846665859,-995.489159,0.00012329,2]
[340210489,1728846665868,-995.489159,0.00012329,2]
[340210490,1728846665879,-214.643358,0.00012329,2]
[340210491,1728846665889,-214.643358,0.00012329,2]
[340210492,1728846665900,-151.0,0.00012329,2]
[340210493,1728846665911,-151.0,0.00012329,2]
[340210494,1728846665921,-151.0,0.00012329,2]
[340210495,1728846665934,-254.74787,0.00012329,2]
[340210496,1728846665945,-151.0,0.00012329,2]
[340210497,1728846665954,-254.74787,0.00012329,2]
[340210498,1728846665963,-151.0,0.00012329,2]
[340210499,1728846665975,-151.0,0.00012329,2]
[340210500,1728846665984,-347.859389,0.00012329,2]
[340210501,1728846665993,-347.859389,0.00012329,2]
[340210502,1728846666003,-151.0,0.00012329,2]
[340210503,1728846666013,-155.529379,0.00012329,2]
[340210504,1728846666022,-179.246432,0.00012329,2]
[340210505,1728846666032,-179.246432,0.00012329,2]
[340210506,1728846666041,-151.0,0.00012329,2]
[340210507,1728846666052,-294.681764,0.00012329,2]
[340210508,1728846666062,-294.681764,0.00012329,2]
[340210509,1728846666071,-151.0,0.00012329,2]
[340210510,1728846666081,-230.086417,0.00012329,2]
[340210511,1728846666090,-358.806051,0.00012329,2]
[340210512,1728846666099,-358.806051,0.00012329,2]
[340210513,1728846666109,-151.0,0.00012329,2]
[340210514,1728846666118,-1099.960813,0.00012329,2]
[340210515,1728846666128,-1099.960813,0.00012329,2]
[340210516,1728846666137,-151.0,0.00012329,2]
[340210517,1728846666147,-210.79868,0.00012329,2]
[340210518,1728846666158,-210.79868,0.00012329,2]
[340210519,1728846666167,-8803.523102,0.00012329,2]
[340210520,1728846666176,-151.0,0.00012329,2]
[340210521,1728846666186,-658.953319,0.00012329,2]
[340210522,1728846666197,-8803.523102,0.00012329,2]
[340210523,1728846666206,-658.953319,0.00012329,2]
[340210524,1728846666215,-263.097956,0.00012329,2]
[340210525,1728846666224,-158.560125,0.00012329,2]
[340210526,1728846666233,-263.097956,0.00012329,2]
[340210527,1728846666245,-158.560125,0.00012329,2]
[340210528,1728846666256,-151.0,0.00012329,2]
[340210529,1728846666265,-151.0,0.00012329,2]
[340210530,1728846666274,-157.498216,0.00012329,2]
[340210531,1728846666284,-157.498216,0.00012329,2]
[340210532,1728846666293,-377.220232,0.00012329,2]
[340210533,1728846666303,-151.0,0.00012329,2]
[340210534,1728846666314,-377.220232,0.00012329,2]
[340210535,1728846666326,-151.0,0.00012329,2]
[340210536,1728846666336,-541.935715,0.00012329,2]
[340210537,1728846666346,-541.935715,0.00012329,2]
[340210538,1728846666358,-175.557638,0.00012329,2]
[340210539,1728846666367,-258.860542,0.00012329,2]
[340210540,1728846666376,-154.591708,0.00012329,2]
[340210541,1728846666385,-175.557638,0.00012329,2]
[340210542,1728846666395,-241.579093,0.00012329,2]
[340210543,1728846666404,-241.579093,0.00012329,2]
[340210544,1728846666414,-151.0,0.00012329,2]
[340210545,1728846666424,-167.51,0.00012445,2]
[340210546,1728846666436,-165.88,0.00012445,2]
[340210547,1728846666449,-167.71,0.00012445,2]
[340210548,1728846666462,-600.14,0.00012458,2]
[340210549,1728846666471,-291.49371974,0.000125,2]
[340210550,1728846666480,-250.0,0.000125,2]
[340210551,1728846666490,-257.74,0.000125,2]
[340210552,1728846666499,-45156.11573303,0.00012579,2]
[340210553,1728846666508,-151.0,0.00012579,2]
[340210554,1728846666518,-151.0,0.00012579,2]
[340210555,1728846666528,-151.0,0.00012579,2]
[340210556,1728846666538,-151.0,0.00012579,2]
[340210557,1728846666547,-151.0,0.00012579,2]
[340210558,1728846666556,-151.0,0.00012579,2]
[340210559,1728846666566,-151.0,0.00012579,2]
[340210560,1728846666575,-151.0,0.00012579,2]
[340210561,1728846666584,-151.0,0.00012579,2]
[340210562,1728846666594,-151.0,0.00012579,2]
[340210563,1728846666603,-201.535813,0.00012579,2]
[340210564,1728846666612,-201.535813,0.00012579,2]
[340210565,1728846666622,-395.266108,0.00012579,2]
[340210566,1728846666632,-395.266108,0.00012579,2]
[340210567,1728846666641,-170.675824,0.00012579,2]
[340210568,1728846666650,-151.0,0.00012579,2]
[340210569,1728846666660,-217.032502,0.00012579,2]
[340210570,1728846666669,-151.0,0.00012579,2]
[340210571,1728846666678,-151.0,0.00012579,2]
[340210572,1728846666687,-151.0,0.00012579,2]
[340210573,1728846666701,-151.0,0.00012579,2]
[340210574,1728846666710,-151.0,0.00012579,2]
[340210575,1728846666719,-151.0,0.00012579,2]
[340210576,1728846666728,-151.0,0.00012579,2]
[340210577,1728846666738,-582.84,0.00012603,2]
[340210578,1728846666748,-4106.00450393,0.00012646,2]
[340210579,1728846666757,-492.65439,0.00012655,2]
[340210580,1728846666767,-492.65439,0.00012655,2]
[340210581,1728846666776,-151.0,0.00012655,2]
[340210582,1728846666786,-151.0,0.00012655,2]
[340210583,1728846666795,-151.0,0.00012655,2]
[340210584,1728846666805,-151.0,0.00012655,2]
[340210585,1728846666814,-168.71459,0.00012655,2]
[340210586,1728846666823,-168.71459,0.00012655,2]
[340210587,1728846666833,-15403.80042754,0.00012666,2]
[340210588,1728846666842,-617.18,0.00012716,2]
[340210589,1728846666852,-500.0,0.00012744,2]
[340210590,1728846666861,-1061.0,0.00012744,2]
[340210591,1728846666870,-205.48,0.00012757,2]
[340210592,1728846666879,-755.74,0.00012838,2]
[340210593,1728846666888,-755.74,0.00012838,2]
[340210594,1728846666897,-755.2,0.00012838,2]
[340210595,1728846666906,-424.09,0.00012838,2]
[340210596,1728846666916,-424.09,0.00012838,2]
[340210597,1728846666925,-146160.41004197,0.0001287,2]
[340210598,1728846666936,-139491.12953328,0.0001287,2]
[340210599,1728846666948,-151.0,0.0001287,2]
[340210600,1728846666957,-151.0,0.0001287,2]
[340210601,1728846667090,-151.0,0.0001287,2]
[340210602,1728846667102,-151.0,0.0001287,2]
[340210603,1728846667114,-151.0,0.0001287,2]
[340210604,1728846667124,-155.36867,0.0001287,2]
[340210605,1728846667133,-151.0,0.0001287,2]
[340210606,1728846667145,-151.0,0.0001287,2]
[340210607,1728846667156,-153.276974,0.0001287,2]
[340210608,1728846667169,-729.355203,0.0001287,2]
[340210609,1728846667179,-729.355203,0.0001287,2]
[340210610,1728846667188,-158.129262,0.0001287,2]
[340210611,1728846667199,-151.0,0.0001287,2]
[340210612,1728846667208,-229.162871,0.0001287,2]
[340210613,1728846667217,-151.0,0.0001287,2]
[340210614,1728846667228,-151.0,0.0001287,2]
[340210615,1728846667239,-151.0,0.0001287,2]
[340210616,1728846667248,-151.0,0.0001287,2]
[340210617,1728846667258,-201.535813,0.0001287,2]
[340210618,1728846667267,-201.535813,0.0001287,2]
[340210619,1728846667277,-395.266108,0.0001287,2]
[340210620,1728846667287,-395.266108,0.0001287,2]
[340210621,1728846667297,-170.675824,0.0001287,2]
[340210622,1728846667307,-151.0,0.0001287,2]
[340210623,1728846667316,-151.0,0.0001287,2]
[340210624,1728846667326,-151.0,0.0001287,2]
[340210625,1728846667335,-151.0,0.0001287,2]
[340210626,1728846667344,-151.0,0.0001287,2]
[340210627,1728846667353,-151.0,0.0001287,2]
[340210628,1728846667363,-151.0,0.0001287,2]
[340210629,1728846667373,-151.0,0.0001287,2]
[340210630,1728846667383,-151.0,0.0001287,2]
[340210631,1728846667392,-151.0,0.0001287,2]
[340210632,1728846667402,-151.0,0.0001287,2]
[340210633,1728846667411,-492.65439,0.0001287,2]
[340210634,1728846667422,-151.0,0.0001287,2]
[340210635,1728846667433,-492.65439,0.0001287,2]
[340210636,1728846667443,-151.0,0.0001287,2]
[340210637,1728846667453,-151.0,0.0001287,2]
[340210638,1728846667464,-172.04599,0.0001287,2]
[340210639,1728846667474,-172.04599,0.0001287,2]
[340210640,1728846667483,-432.604433,0.0001287,2]
[340210641,1728846667492,-432.604433,0.0001287,2]
[340210642,1728846667502,-308.193373,0.0001287,2]
[340210643,1728846667511,-308.193373,0.0001287,2]
[340210644,1728846667521,-151.0,0.0001287,2]
[340210645,1728846667531,-151.0,0.0001287,2]
[340210646,1728846667540,-249.978941,0.0001287,2]
[340210647,1728846667550,-249.978941,0.0001287,2]
[340210648,1728846667559,-224.344124,0.0001287,2]
[340210649,1728846667569,-224.344124,0.0001287,2]
[340210650,1728846667579,-258.253411,0.0001287,2]
[340210651,1728846667588,-258.253411,0.0001287,2]
[340210652,1728846667598,-168.71459,0.0001287,2]
[340210653,1728846667607,-168.71459,0.0001287,2]
[340210654,1728846667617,-197.458902,0.0001287,2]
[340210655,1728846667626,-197.458902,0.0001287,2]
[340210656,1728846667635,-313.95233,0.0001287,2]
[340210657,1728846667645,-313.95233,0.0001287,2]
[340210658,1728846667654,-151.0,0.0001287,2]
[340210659,1728846667664,-899.559417,0.0001287,2]
[340210660,1728846667673,-899.559417,0.0001287,2]
[340210661,1728846667682,-2600.59806,0.0001287,2]
[340210662,1728846667692,-2600.59806,0.0001287,2]
[340210663,1728846667705,-207.853662,0.0001287,2]
[340210664,1728846667714,-207.853662,0.0001287,2]
[340210665,1728846667724,-194.830313,0.0001287,2]
[340210666,1728846667733,-194.830313,0.0001287,2]
[340210667,1728846667743,-171.82244,0.0001287,2]
[340210668,1728846667752,-171.82244,0.0001287,2]
[340210669,1728846667761,-1136.302571,0.0001287,2]
[340210670,1728846667771,-329.968836,0.0001287,2]
[340210671,1728846667780,-1136.302571,0.0001287,2]
[340210672,1728846667790,-329.968836,0.0001287,2]
[340210673,1728846667799,-151.0,0.0001287,2]
[340210674,1728846667808,-151.0,0.0001287,2]
[340210675,1728846667818,-151.0,0.0001287,2]
[340210676,1728846667826,-928.367649,0.0001287,2]
[340210677,1728846667836,-151.0,0.0001287,2]
[340210678,1728846667845,-580.768698,0.0001287,2]
[340210679,1728846667855,-151.0,0.0001287,2]
[340210680,1728846667865,-558.680616,0.0001287,2]
[340210681,1728846667874,-151.0,0.0001287,2]
[340210682,1728846667884,-580.768698,0.0001287,2]
[340210683,1728846667894,-558.680616,0.0001287,2]
[340210684,1728846667904,-296.234518,0.0001287,2]
[340210685,1728846667913,-296.234518,0.0001287,2]
[340210686,1728846667923,-151.0,0.0001287,2]
[340210687,1728846667935,-995.489159,0.0001287,2]
[340210688,1728846667947,-995.489159,0.0001287,2]
[340210689,1728846667956,-214.643358,0.0001287,2]
[340210690,1728846667965,-214.643358,0.0001287,2]
[340210691,1728846667975,-151.0,0.0001287,2]
[340210692,1728846667986,-151.0,0.0001287,2]
[340210693,1728846667995,-151.0,0.0001287,2]
[340210694,1728846668006,-254.74787,0.0001287,2]
[340210695,1728846668015,-151.0,0.0001287,2]
[340210696,1728846668025,-254.74787,0.0001287,2]
[340210697,1728846668035,-151.0,0.0001287,2]
[340210698,1728846668044,-151.0,0.0001287,2]
[340210699,1728846668053,-347.859389,0.0001287,2]
[340210700,1728846668063,-347.859389,0.0001287,2]
[340210701,1728846668072,-151.0,0.0001287,2]
[340210702,1728846668081,-179.246432,0.0001287,2]
[340210703,1728846668090,-179.246432,0.0001287,2]
[340210704,1728846668100,-151.0,0.0001287,2]
[340210705,1728846668110,-294.681764,0.0001287,2]
[340210706,1728846668119,-294.681764,0.0001287,2]
[340210707,1728846668128,-151.0,0.0001287,2]
[340210708,1728846668137,-358.806051,0.0001287,2]
[340210709,1728846668146,-358.806051,0.0001287,2]
[340210710,1728846668155,-154.835128,0.0001287,2]
[340210711,1728846668165,-1099.960813,0.0001287,2]
[340210712,1728846668175,-1099.960813,0.0001287,2]
[340210713,1728846668184,-151.0,0.0001287,2]
[340210714,1728846668198,-210.79868,0.0001287,2]
[340210715,1728846668207,-210.79868,0.0001287,2]
[340210716,1728846668217,-8803.523102,0.0001287,2]
[340210717,1728846668226,-151.0,0.0001287,2]
[340210718,1728846668240,-658.953319,0.0001287,2]
[340210719,1728846668250,-8803.523102,0.0001287,2]
[340210720,1728846668260,-658.953319,0.0001287,2]
[340210721,1728846668270,-263.097956,0.0001287,2]
[340210722,1728846668280,-263.097956,0.0001287,2]
[340210723,1728846668290,-158.560125,0.0001287,2]
[340210724,1728846668299,-158.560125,0.0001287,2]
[340210725,1728846668309,-151.0,0.0001287,2]
[340210726,1728846668319,-191.318647,0.0001287,2]
[340210727,1728846668329,-157.498216,0.0001287,2]
[340210728,1728846668339,-157.498216,0.0001287,2]
[340210729,1728846668350,-377.220232,0.0001287,2]
[340210730,1728846668361,-156.716199,0.0001287,2]
[340210731,1728846668370,-377.220232,0.0001287,2]
[340210732,1728846668379,-155.183259,0.0001287,2]
[340210733,1728846668389,-541.935715,0.0001287,2]
[340210734,1728846668398,-541.935715,0.0001287,2]
[340210735,1728846668408,-175.557638,0.0001287,2]
[340210736,1728846668417,-175.557638,0.0001287,2]
[340210737,1728846668427,-241.579093,0.0001287,2]
[340210738,1728846668436,-241.579093,0.0001287,2]
[340210739,1728846668451,-151.0,0.0001287,2]
[340210740,1728846668460,-500.0,0.00012873,2]
[340210741,1728846668470,-160.85905037,0.00012873,2]
[340210742,1728846668479,-500.0,0.00012873,2]
[340210743,1728846668489,-500.0,0.00012873,2]
[340210744,1728846668498,-600.14,0.00012884,2]
[340210745,1728846668507,-433.0,0.00012887,2]
[340210746,1728846668517,-58957.30695568,0.0001289,2]
[340210747,1728846668526,-179.99,0.00012893,2]
[340210748,1728846668536,-157.325719,0.00012893,2]
[340210749,1728846668545,-151.0,0.00012893,2]
[340210750,1728846668554,-151.0,0.00012893,2]
[340210751,1728846668563,-151.0,0.00012893,2]
[340210752,1728846668572,-95925.49075049,0.00012899,2]
[340210753,1728846668583,-41994.03949253,0.00012899,2]
[340210754,1728846668593,-151.0,0.00012899,2]
[340210755,1728846668602,-151.0,0.00012899,2]
[340210756,1728846668612,-151.0,0.00012899,2]
[340210757,1728846668621,-151.0,0.00012899,2]
[340210758,1728846668631,-729.355203,0.00012899,2]
[340210759,1728846668640,-729.355203,0.00012899,2]
[340210760,1728846668650,-151.0,0.00012899,2]
[340210761,1728846668660,-220.859358,0.00012899,2]
[340210762,1728846668670,-151.0,0.00012899,2]
[340210763,1728846668679,-201.535813,0.00012899,2]
[340210764,1728846668689,-201.535813,0.00012899,2]
[340210765,1728846668703,-395.266108,0.00012899,2]
[340210766,1728846668712,-395.266108,0.00012899,2]
[340210767,1728846668722,-170.675824,0.00012899,2]
[340210768,1728846668731,-151.0,0.00012899,2]
[340210769,1728846668740,-151.0,0.00012899,2]
[340210770,1728846668750,-151.0,0.00012899,2]
[340210771,1728846668759,-151.0,0.00012899,2]
[340210772,1728846668768,-151.0,0.00012899,2]
[340210773,1728846668778,-151.0,0.00012899,2]
[340210774,1728846668788,-151.0,0.00012899,2]
[340210775,1728846668797,-492.65439,0.00012899,2]
[340210776,1728846668808,-156.99705,0.00012899,2]
[340210777,1728846668817,-492.65439,0.00012899,2]
[340210778,1728846668827,-204.050663,0.00012899,2]
[340210779,1728846668836,-153.545132,0.00012899,2]
[340210780,1728846668846,-172.04599,0.00012899,2]
[340210781,1728846668855,-172.04599,0.00012899,2]
[340210782,1728846668865,-432.604433,0.00012899,2]
[340210783,1728846668874,-432.604433,0.00012899,2]
[340210784,1728846668883,-308.193373,0.00012899,2]
[340210785,1728846668893,-308.193373,0.00012899,2]
[340210786,1728846668902,-151.0,0.00012899,2]
[340210787,1728846668911,-151.0,0.00012899,2]
[340210788,1728846668920,-249.978941,0.00012899,2]
[340210789,1728846668931,-249.978941,0.00012899,2]
[340210790,1728846668941,-224.344124,0.00012899,2]
[340210791,1728846668953,-224.344124,0.00012899,2]
[340210792,1728846668964,-258.253411,0.00012899,2]
[340210793,1728846668973,-258.253411,0.00012899,2]
[340210794,1728846668982,-168.71459,0.00012899,2]
[340210795,1728846668992,-168.71459,0.00012899,2]
[340210796,1728846669002,-197.458902,0.00012899,2]
[340210797,1728846669012,-197.458902,0.00012899,2]
[340210798,1728846669021,-313.95233,0.00012899,2]
[340210799,1728846669030,-313.95233,0.00012899,2]
[340210800,1728846669040,-151.0,0.00012899,2]
[340210801,1728846669049,-899.559417,0.00012899,2]
[340210802,1728846669058,-899.559417,0.00012899,2]
[340210803,1728846669067,-2600.59806,0.00012899,2]
[340210804,1728846669076,-2600.59806,0.00012899,2]
[340210805,1728846669085,-207.853662,0.00012899,2]
[340210806,1728846669095,-207.853662,0.00012899,2]
[340210807,1728846669104,-194.830313,0.00012899,2]
[340210808,1728846669113,-194.830313,0.00012899,2]
[340210809,1728846669123,-171.82244,0.00012899,2]
[340210810,1728846669132,-171.82244,0.00012899,2]
[340210811,1728846669141,-1136.302571,0.00012899,2]
[340210812,1728846669150,-1136.302571,0.00012899,2]
[340210813,1728846669159,-157.585921,0.00012899,2]
[340210814,1728846669168,-151.0,0.00012899,2]
[340210815,1728846669178,-151.0,0.00012899,2]
[340210816,1728846669187,-928.367649,0.00012899,2]
[340210817,1728846669198,-151.0,0.00012899,2]
[340210818,1728846669207,-580.768698,0.00012899,2]
[340210819,1728846669216,-151.0,0.00012899,2]
[340210820,1728846669225,-558.680616,0.00012899,2]
[340210821,1728846669234,-151.0,0.00012899,2]
[340210822,1728846669244,-580.768698,0.00012899,2]
[340210823,1728846669254,-558.680616,0.00012899,2]
[340210824,1728846669264,-296.234518,0.00012899,2]
[340210825,1728846669273,-296.234518,0.00012899,2]
[340210826,1728846669282,-151.0,0.00012899,2]
[340210827,1728846669291,-995.489159,0.00012899,2]
[340210828,1728846669300,-995.489159,0.00012899,2]
[340210829,1728846669310,-214.643358,0.00012899,2]
[340210830,1728846669319,-214.643358,0.00012899,2]
[340210831,1728846669328,-151.0,0.00012899,2]
[340210832,1728846669338,-151.0,0.00012899,2]
[340210833,1728846669347,-151.0,0.00012899,2]
[340210834,1728846669357,-254.74787,0.00012899,2]
[340210835,1728846669366,-151.0,0.00012899,2]
[340210836,1728846669375,-254.74787,0.00012899,2]
[340210837,1728846669384,-151.0,0.00012899,2]
[340210838,1728846669394,-151.0,0.00012899,2]
[340210839,1728846669403,-347.859389,0.00012899,2]
[340210840,1728846669412,-347.859389,0.00012899,2]
[340210841,1728846669421,-283.518388,0.00012899,2]
[340210842,1728846669430,-179.246432,0.00012899,2]
[340210843,1728846669439,-179.246432,0.00012899,2]
[340210844,1728846669451,-156.547724,0.00012899,2]
[340210845,1728846669460,-294.681764,0.00012899,2]
[340210846,1728846669470,-294.681764,0.00012899,2]
[340210847,1728846669479,-151.0,0.00012899,2]
[340210848,1728846669488,-358.806051,0.00012899,2]
[340210849,1728846669498,-358.806051,0.00012899,2]
[340210850,1728846669507,-151.0,0.00012899,2]
[340210851,1728846669516,-158.560125,0.00012899,2]
[340210852,1728846669642,-158.560125,0.00012899,2]
[340210853,1728846669653,-541.935715,0.00012899,2]
[340210854,1728846669663,-541.935715,0.00012899,2]
[340210855,1728846669673,-241.579093,0.00012899,2]
[340210856,1728846669683,-241.579093,0.00012899,2]
[340210857,1728846669693,-151.0,0.00012899,2]
[340210858,1728846669703,-6516.11459688,0.000129,2]
[340210859,1728846669713,-895.0,0.000129,4]
[340210860,1728846669722,-16097.6372091,0.000129,2]
[340210861,1728846669731,-12290.15309026,0.000129,2]
[340210862,1728846669741,-151.0,0.000129,2]
[340210863,1728846669751,-151.0,0.000129,2]
[340210864,1728846669760,-1099.960813,0.00012924,2]
[340210865,1728846669771,-1099.960813,0.00012924,2]
[340210866,1728846669780,-210.79868,0.00012924,2]
[340210867,1728846669790,-210.79868,0.00012924,2]
[340210868,1728846669800,-151.0,0.00012924,2]
[340210869,1728846669812,-157.498216,0.00012924,2]
[340210870,1728846669822,-157.498216,0.00012924,2]
[340210871,1728846669832,-154.484493,0.00012986,2]
[340210872,1728846669842,-151.0,0.00012986,2]
[340210873,1728846669852,-151.0,0.00012986,2]
[340210874,1728846669863,-90481.8,0.00012995,2]
[340210875,1728846669872,-151.0,0.00012995,2]
[340210876,1728846669882,-151.0,0.00012995,2]
[340210877,1728846669891,-203.769055,0.00012995,2]
[340210878,1728846669902,-329.968836,0.00012995,2]
[340210879,1728846669915,-329.968836,0.00012995,2]
[340210880,1728846669927,-8803.523102,0.00012995,2]
[340210881,1728846669939,-658.953319,0.00012995,2]
[340210882,1728846669950,-8803.523102,0.00012995,2]
[340210883,1728846669960,-658.953319,0.00012995,2]
[340210884,1728846669970,-263.097956,0.00012995,2]
[340210885,1728846669980,-263.097956,0.00012995,2]
[340210886,1728846669990,-151.0,0.00012995,2]
[340210887,1728846670001,-377.220232,0.00012995,2]
[340210888,1728846670011,-377.220232,0.00012995,2]
[340210889,1728846670022,-175.557638,0.00012995,2]
[340210890,1728846670032,-175.557638,0.00012995,2]
[340210891,1728846670042,-1000.0,0.00013,5]
[340210892,1728846670052,-1300.0,0.00013,4]
[340210893,1728846670062,-4195.32111862,0.00013,2]
[340210894,1728846670071,-810.68507084,0.00013,2]
[340210895,1728846670081,-872.0,0.00013036,2]
[340210896,1728846670091,-5066.02238423,0.0001305,2]
[340210897,1728846670101,-160.0,0.00013108,2]
[340210898,1728846670111,-150.047,0.00013115,2]
[340210899,1728846670121,-626.0,0.00013115,2]
[340210900,1728846670132,-812.0,0.00013115,2]
[340210901,1728846670142,-1054.032,0.00013115,2]
[340210902,1728846670152,-551.397,0.00013115,2]
[340210903,1728846670162,-560.0,0.00013115,2]
[340210904,1728846670172,-935.0,0.00013115,2]
[340210905,1728846670182,-3356.0,0.00013115,2]
[340210906,1728846670198,-555.0,0.00013115,2]
[340210907,1728846670210,-1908.0,0.00013115,2]
[340210908,1728846670220,-160.09,0.00013118,2]
[340210909,1728846670231,-582.84,0.00013151,2]
[340210910,1728846670240,-151.0,0.00013183,2]
[340210911,1728846670250,-151.0,0.00013183,2]
[340210912,1728846670260,-4106.00450393,0.00013261,2]
[340210913,1728846670269,-500.0,0.00013292,2]
[340210914,1728846670280,-1061.0,0.00013292,2]
[340210915,1728846670289,-600.14,0.0001331,2]